{"text_format":"2","workbook":"xlsx","n_sheets":1,"sheets":["Munkafuzet1"],"not_rendered":{"charts":0,"images":0,"macros":0,"external_links":0,"defined_names":1,"comments":0,"pivot_tables":0},"unopened":[],"bounds":{"document_bytes":16777216,"sheet_cells":100000,"run_cost":"one","rows_first":2000,"rows_last":500,"rows_between":2000,"halvings":0,"cell_chars":16384,"cell_head_chars":4096},"cells_cut":0,"cells_raw":0,"read":"whole","date_system":"1900"}

{"sheet":"Munkafuzet1","index":0,"n_rows":27,"n_cols":6,"rows_kept":27,"cut":false,"hidden":false,"merged":[[26,0,27,3],[26,4,27,4],[26,5,27,5]]}
["Leltárkörzet név","Tárgyi eszköz kód ","Tárgyi eszköz  név","Gyáriszám","Nettó érték","Bruttó érték"]
["AITI (Kálvária)","21/A/U002423","Invazív lélegeztetőgép Panther 5","P5AH2008522",null,{"$f":"1.27*E2","v":0}]
["AITI (Kálvária)","21/A/U002424","Invazív lélegeztetőgép Panther 5","P5AH2008683",null,{"$f":"1.27*E3","v":0}]
["AITI (Kálvária)","21/A/U002425","Invazív lélegeztetőgép Panther 5","P5AH2008694",null,0]
["AITI (Kálvária)","21/A/U002426","Invazív lélegeztetőgép Panther 5","P5AH2008690",null,0]
["AITI (Kálvária)","21/A/U002427","Invazív lélegeztetőgép Panther 5","P5AH2008291",null,0]
["AITI (Kálvária)","21/A/U002428","Invazív lélegeztetőgép Panther 5","P5AH2008194",null,0]
["AITI (Kálvária)","21/A/U002429","Invazív lélegeztetőgép Panther 5","P5AH2008798",null,0]
["AITI (Kálvária)","21/A/U002435","Invazív lélegeztetőgép Panther 5","P5AH2008616",null,0]
["Újklinika SBO","21/A/K000027","Invazív lélegeztetőgép Panther 5","P5AH2008379",null,0]
["Újklinika SBO","21/A/K000028","Invazív lélegeztetőgép Panther 5","P5AH2008211",null,0]
["Újklinika SBO","21/A/K000029","Invazív lélegeztetőgép Panther 5","P5AH2008805",null,0]
["Újklinika SBO","21/A/K000030","Invazív lélegeztetőgép Panther 5","P5AH2008815",null,0]
["Újklinika SBO","21/A/K000031","Invazív lélegeztetőgép Panther 5","P5AH2007067",null,0]
["Gyermekgyógyászati Klinika              0500","Inkubátor","Inkubátor GIRAFFE","HDHS50341",null,0]
["Gyermekgyógyászati Klinika              0500","Inkubátor","Inkubátor GIRAFFE","HDHS50349",null,0]
["Gyermekgyógyászati Klinika              0500","Inkubátor","Inkubátor GIRAFFE","HDHS50342",null,0]
["Gyermekgyógyászati Klinika              0500","Inkubátor","Inkubátor GIRAFFE","HDHS50348",null,0]
["Gyermekgyógyászati Klinika              0500","Inkubátor","Inkubátor GIRAFFE","HDHS50350",null,0]
["Gyermekgyógyászati Klinika              0500","Inkubátor","Inkubátor GIRAFFE","HDHS50346",null,0]
["Gyermekgyógyászati Klinika              0500","Inkubátor","Inkubátor GIRAFFE","HDHS50343",null,0]
["Gyermekgyógyászati Klinika              0500","Inkubátor","Inkubátor OMNIBED","HDGS50773",null,0]
["Gyermekgyógyászati Klinika              0500","Inkubátor","Inkubátor OMNIBED","HDGS50767",null,0]
["Gyermekgyógyászati Klinika              0500","Inkubátor","Inkubátor OMNIBED","HDGS50774",null,0]
["Szülészeti és Nőgyógyászati Kl          0400","Inkubátor","Hibrid inkubátor készülék GE Giraffe Omnibed Carestation","TABZ71976",null,0]
["Szülészeti és Nőgyógyászati Kl          0400","Inkubátor","Hibrid inkubátor készülék GE Giraffe Omnibed Carestation","TABZ71977",null,0]
["Összesen:",null,null,null,{"$f":"SUM(E2:E26)","v":0},{"$f":"SUM(F2:F26)","v":0}]